[Event "Early-Titled-Tuesday-Blitz-October-24-2023"]
[Site "Chess.com"]
[Date "2023.10.24"]
[Round "6"]
[White "hsd2016"]
[Black "OLDTERMINATOR"]
[Result "1/2-1/2"]
[WhiteElo "2268"]
[BlackElo "1704"]
[TimeControl "180+1"]
[EndTime "9:03:48 PDT"]
[Termination "Game drawn by repetition"]

1. e4 {[%clk 0:03:00.8]} 1... e6 {[%clk 0:02:58.5]} 2. Nf3 {[%clk 0:03:01.5]}
2... d5 {[%clk 0:02:58.6]} 3. exd5 {[%clk 0:03:02.4]} 3... exd5 {[%clk 0:02:58]}
4. d4 {[%clk 0:03:03.3]} 4... Nf6 {[%clk 0:02:58.2]} 5. h3 {[%clk 0:03:04.2]}
5... Bd6 {[%clk 0:02:57]} 6. Bd3 {[%clk 0:03:05.1]} 6... O-O {[%clk 0:02:53.1]}
7. O-O {[%clk 0:03:05.8]} 7... Re8 {[%clk 0:02:53.1]} 8. c3 {[%clk 0:03:06.6]}
8... c5 {[%clk 0:02:50.7]} 9. dxc5 {[%clk 0:03:06.7]} 9... Bxc5 {[%clk
0:02:49.7]} 10. Qb3 {[%clk 0:03:06.3]} 10... h6 {[%clk 0:02:38.2]} 11. Nbd2
{[%clk 0:03:02.3]} 11... Nc6 {[%clk 0:02:35.8]} 12. Rd1 {[%clk 0:02:51.9]} 12...
d4 {[%clk 0:02:33.8]} 13. Nf1 {[%clk 0:02:50.2]} 13... Qc7 {[%clk 0:02:15.1]}
14. cxd4 {[%clk 0:02:42.1]} 14... Nxd4 {[%clk 0:02:02.4]} 15. Nxd4 {[%clk
0:02:41.3]} 15... Bxd4 {[%clk 0:02:01.6]} 16. Be3 {[%clk 0:02:40.9]} 16... Bxe3
{[%clk 0:01:54.3]} 17. Nxe3 {[%clk 0:02:40.9]} 17... Be6 {[%clk 0:01:53.4]} 18.
Qa4 {[%clk 0:02:38.8]} 18... Qb6 {[%clk 0:01:47.1]} 19. b3 {[%clk 0:02:35.8]}
19... Rad8 {[%clk 0:01:44]} 20. Qf4 {[%clk 0:02:31.1]} 20... Nd5 {[%clk
0:01:16.3]} 21. Nxd5 {[%clk 0:02:31]} 21... Rxd5 {[%clk 0:01:08.9]} 22. Bc4
{[%clk 0:02:27.4]} 22... Rf5 {[%clk 0:01:06.8]} 23. Qd4 {[%clk 0:02:23.9]} 23...
Qxd4 {[%clk 0:01:01.9]} 24. Rxd4 {[%clk 0:02:24.4]} 24... Bxc4 {[%clk
0:01:00.1]} 25. Rxc4 {[%clk 0:02:25]} 25... Re2 {[%clk 0:00:59.9]} 26. f3 {[%clk
0:02:07.9]} 26... Ra5 {[%clk 0:00:46.6]} 27. Rc7 {[%clk 0:01:57.3]} 27... b6
{[%clk 0:00:41.7]} 28. a4 {[%clk 0:01:57.1]} 28... Rg5 {[%clk 0:00:38.7]} 29. g4
{[%clk 0:01:56.1]} 29... Rd5 {[%clk 0:00:36.2]} 30. Rxa7 {[%clk 0:01:36.6]}
30... Rdd2 {[%clk 0:00:33.3]} 31. Rb7 {[%clk 0:01:28]} 31... Rg2+ {[%clk
0:00:28.7]} 32. Kf1 {[%clk 0:01:27.5]} 32... Rdf2+ {[%clk 0:00:27.5]} 33. Ke1
{[%clk 0:01:27.9]} 33... Rxf3 {[%clk 0:00:15.7]} 34. Rxb6 {[%clk 0:01:26.6]}
34... Rxh3 {[%clk 0:00:13.7]} 35. Kf1 {[%clk 0:01:25.8]} 35... Rhh2 {[%clk
0:00:13.6]} 36. a5 {[%clk 0:01:24.1]} 36... Rf2+ {[%clk 0:00:08.4]} 37. Ke1
{[%clk 0:01:24.6]} 37... Re2+ {[%clk 0:00:08.4]} 38. Kd1 {[%clk 0:01:25.3]}
38... Rd2+ {[%clk 0:00:08.7]} 39. Ke1 {[%clk 0:01:25.6]} 39... Rde2+ {[%clk
0:00:08.9]} 40. Kf1 {[%clk 0:01:25.9]} 40... Ref2+ {[%clk 0:00:09.1]} 41. Ke1
{[%clk 0:01:26.1]} 41... Re2+ {[%clk 0:00:09.3]} 1/2-1/2

[Event "Early-Titled-Tuesday-Blitz-October-24-2023"]
[Site "Chess.com"]
[Date "2023.10.24"]
[Round "6"]
[White "Byniolus"]
[Black "SharapovEvgeny"]
[Result "1-0"]
[WhiteElo "2797"]
[BlackElo "2616"]
[TimeControl "180+1"]
[EndTime "9:03:50 PDT"]
[Termination "Byniolus won by resignation"]

1. d4 {[%clk 0:03:00.9]} 1... Nf6 {[%clk 0:02:59.7]} 2. Nf3 {[%clk 0:03:01.3]}
2... e6 {[%clk 0:02:59.9]} 3. Bf4 {[%clk 0:03:01.6]} 3... d5 {[%clk 0:02:57.4]}
4. e3 {[%clk 0:03:02]} 4... Bd6 {[%clk 0:02:57.1]} 5. Bg3 {[%clk 0:03:02.6]}
5... O-O {[%clk 0:02:56.8]} 6. Nbd2 {[%clk 0:03:03.1]} 6... b6 {[%clk
0:02:56.9]} 7. c3 {[%clk 0:03:03.3]} 7... Bb7 {[%clk 0:02:57.1]} 8. Ne5 {[%clk
0:03:03.7]} 8... Nbd7 {[%clk 0:02:56.7]} 9. f4 {[%clk 0:03:03.3]} 9... Ne4
{[%clk 0:02:54.7]} 10. Nxe4 {[%clk 0:03:03.4]} 10... dxe4 {[%clk 0:02:54.9]} 11.
Be2 {[%clk 0:03:00.2]} 11... f6 {[%clk 0:02:49]} 12. Nc4 {[%clk 0:02:58.3]}
12... f5 {[%clk 0:02:46.6]} 13. O-O {[%clk 0:02:55.8]} 13... Kh8 {[%clk
0:02:45.1]} 14. Nxd6 {[%clk 0:02:50.9]} 14... cxd6 {[%clk 0:02:45.1]} 15. c4
{[%clk 0:02:51.8]} 15... Rc8 {[%clk 0:02:42.9]} 16. Qa4 {[%clk 0:02:48]} 16...
a6 {[%clk 0:02:42.2]} 17. Rfc1 {[%clk 0:02:46.6]} 17... Qc7 {[%clk 0:02:36.9]}
18. Rc3 {[%clk 0:02:41.6]} 18... Qc6 {[%clk 0:02:34.5]} 19. Qa3 {[%clk
0:02:37.8]} 19... a5 {[%clk 0:02:31.5]} 20. Rac1 {[%clk 0:02:34.8]} 20... Ba6
{[%clk 0:02:27.1]} 21. d5 {[%clk 0:02:21.1]} 21... Qc5 {[%clk 0:02:15]} 22. dxe6
{[%clk 0:02:16.6]} 22... Qxa3 {[%clk 0:02:15.1]} 23. Rxa3 {[%clk 0:02:01.5]}
23... Nc5 {[%clk 0:02:15.3]} 24. e7 {[%clk 0:01:57.6]} 24... Rfe8 {[%clk
0:02:14.7]} 25. Bh4 {[%clk 0:01:57.6]} 25... d5 {[%clk 0:02:09.3]} 26. Rac3
{[%clk 0:01:32.3]} 26... Kg8 {[%clk 0:02:06.9]} 27. Bf1 {[%clk 0:01:10]} 27...
Bxc4 {[%clk 0:02:05]} 28. Rxc4 {[%clk 0:00:52.3]} 28... dxc4 {[%clk 0:02:03.7]}
29. Bxc4+ {[%clk 0:00:53.2]} 29... Kh8 {[%clk 0:02:03.2]} 30. Bb5 {[%clk
0:00:50.9]} 30... Kg8 {[%clk 0:01:57.3]} 31. Bc4+ {[%clk 0:00:48]} 31... Kh8
{[%clk 0:01:57.2]} 32. Bf7 {[%clk 0:00:46.7]} 32... h6 {[%clk 0:01:43.9]} 33.
Bg6 {[%clk 0:00:46]} 33... Rg8 {[%clk 0:01:34.9]} 34. Bxf5 {[%clk 0:00:36.3]}
34... Rc6 {[%clk 0:01:34.6]} 35. Bxe4 {[%clk 0:00:31.6]} 35... Rc7 {[%clk
0:01:28.7]} 36. Bg6 {[%clk 0:00:28.3]} 36... Ne6 {[%clk 0:01:25.4]} 37. Rd1
{[%clk 0:00:22.4]} 37... Rcc8 {[%clk 0:01:17.9]} 38. Bf7 {[%clk 0:00:20.2]}
38... g5 {[%clk 0:01:15.3]} 39. Bxe6 {[%clk 0:00:18.8]} 39... gxh4 {[%clk
0:01:15]} 40. Bxc8 {[%clk 0:00:18.7]} 40... Rxc8 {[%clk 0:01:15.1]} 41. Rd8+
{[%clk 0:00:18.6]} 1-0

[Event "Early-Titled-Tuesday-Blitz-October-24-2023"]
[Site "Chess.com"]
[Date "2023.10.24"]
[Round "6"]
[White "Harry_Rakkel"]
[Black "GlavkonVVS"]
[Result "1/2-1/2"]
[WhiteElo "2704"]
[BlackElo "2534"]
[TimeControl "180+1"]
[EndTime "9:03:54 PDT"]
[Termination "Game drawn - insufficient material"]

1. e4 {[%clk 0:03:00.9]} 1... Nf6 {[%clk 0:03:00.1]} 2. e5 {[%clk 0:02:58.7]}
2... Nd5 {[%clk 0:03:00.4]} 3. c4 {[%clk 0:02:58.6]} 3... Nb6 {[%clk 0:03:00.8]}
4. d4 {[%clk 0:02:58.8]} 4... d6 {[%clk 0:03:01.3]} 5. exd6 {[%clk 0:02:58.8]}
5... cxd6 {[%clk 0:03:01.9]} 6. Nc3 {[%clk 0:02:57.7]} 6... g6 {[%clk
0:03:02.2]} 7. Be3 {[%clk 0:02:57.6]} 7... Bg7 {[%clk 0:03:02.7]} 8. Rc1 {[%clk
0:02:57.3]} 8... O-O {[%clk 0:03:03.2]} 9. b3 {[%clk 0:02:56.9]} 9... f5 {[%clk
0:03:03.8]} 10. g3 {[%clk 0:02:48.3]} 10... e5 {[%clk 0:03:03.2]} 11. dxe5
{[%clk 0:02:45.7]} 11... dxe5 {[%clk 0:03:03.5]} 12. Qxd8 {[%clk 0:02:44.6]}
12... Rxd8 {[%clk 0:03:03.7]} 13. c5 {[%clk 0:02:40.9]} 13... f4 {[%clk
0:03:04]} 14. gxf4 {[%clk 0:02:34.5]} 14... exf4 {[%clk 0:03:03.5]} 15. Bxf4
{[%clk 0:02:31.2]} 15... Bxc3+ {[%clk 0:03:03.5]} 16. Rxc3 {[%clk 0:02:30]}
16... Nd5 {[%clk 0:03:04.2]} 17. Bc4 {[%clk 0:02:20.8]} 17... Be6 {[%clk
0:03:04.2]} 18. Ne2 {[%clk 0:02:11.3]} 18... Nc6 {[%clk 0:02:46.9]} 19. Bd6
{[%clk 0:02:04.5]} 19... Re8 {[%clk 0:02:40.4]} 20. Bxd5 {[%clk 0:01:36]} 20...
Bxd5 {[%clk 0:02:40.3]} 21. Rg1 {[%clk 0:01:36]} 21... Nd4 {[%clk 0:02:35.5]}
22. Re3 {[%clk 0:01:35]} 22... Nc2+ {[%clk 0:02:35.3]} 23. Kd2 {[%clk
0:01:35.4]} 23... Nxe3 {[%clk 0:02:36.2]} 24. fxe3 {[%clk 0:01:36]} 24... Rad8
{[%clk 0:02:31.7]} 25. Nd4 {[%clk 0:01:28.8]} 25... b6 {[%clk 0:02:25.7]} 26. b4
{[%clk 0:01:27.9]} 26... Rd7 {[%clk 0:02:12.2]} 27. a4 {[%clk 0:01:22]} 27...
Rf7 {[%clk 0:02:09]} 28. Bf4 {[%clk 0:01:16.8]} 28... Re4 {[%clk 0:02:05.1]} 29.
Kc3 {[%clk 0:01:13.5]} 29... bxc5 {[%clk 0:02:00.6]} 30. bxc5 {[%clk 0:01:13]}
30... Rb7 {[%clk 0:01:57.7]} 31. c6 {[%clk 0:01:06.2]} 31... Bxc6 {[%clk
0:01:43.8]} 32. Nxc6 {[%clk 0:01:05]} 32... Rxf4 {[%clk 0:01:44.1]} 33. exf4
{[%clk 0:01:02.4]} 33... Rc7 {[%clk 0:01:44.6]} 34. f5 {[%clk 0:00:42.6]} 34...
Rxc6+ {[%clk 0:01:44.5]} 35. Kb4 {[%clk 0:00:42.3]} 35... Kf7 {[%clk 0:01:43.1]}
36. fxg6+ {[%clk 0:00:41.3]} 36... hxg6 {[%clk 0:01:43.5]} 37. Rg5 {[%clk
0:00:32.3]} 37... Rc2 {[%clk 0:01:38.4]} 38. Ra5 {[%clk 0:00:30.5]} 38... Rxh2
{[%clk 0:01:37.5]} 39. Rxa7+ {[%clk 0:00:30.2]} 39... Kf6 {[%clk 0:01:38.2]} 40.
a5 {[%clk 0:00:28.7]} 40... g5 {[%clk 0:01:34.3]} 41. a6 {[%clk 0:00:26]} 41...
Ra2 {[%clk 0:01:33.7]} 42. Kb5 {[%clk 0:00:25.7]} 42... g4 {[%clk 0:01:33.3]}
43. Ra8 {[%clk 0:00:25.6]} 43... Kg5 {[%clk 0:01:31.7]} 44. a7 {[%clk
0:00:21.2]} 44... g3 {[%clk 0:01:31]} 45. Rg8+ {[%clk 0:00:20.5]} 45... Kf4
{[%clk 0:01:31.1]} 46. a8=Q {[%clk 0:00:20.4]} 46... Rxa8 {[%clk 0:01:30.9]} 47.
Rxa8 {[%clk 0:00:21.3]} 47... g2 {[%clk 0:01:31.3]} 48. Rg8 {[%clk 0:00:21.7]}
48... Kf3 {[%clk 0:01:31.9]} 49. Kc4 {[%clk 0:00:22]} 49... Kf2 {[%clk
0:01:32.5]} 50. Kd3 {[%clk 0:00:22.2]} 50... g1=Q {[%clk 0:01:33]} 51. Rxg1
{[%clk 0:00:22.4]} 51... Kxg1 {[%clk 0:01:33.5]} 1/2-1/2

[Event "Early-Titled-Tuesday-Blitz-October-24-2023"]
[Site "Chess.com"]
[Date "2023.10.24"]
[Round "6"]
[White "RETURNOFTHELAGGER"]
[Black "Fan_Of_Chucky"]
[Result "1-0"]
[WhiteElo "2670"]
[BlackElo "2526"]
[TimeControl "180+1"]
[EndTime "9:03:55 PDT"]
[Termination "RETURNOFTHELAGGER won on time"]

1. e4 {[%clk 0:02:50.7]} 1... c5 {[%clk 0:02:55.1]} 2. Nf3 {[%clk 0:02:49.9]}
2... d6 {[%clk 0:02:54.4]} 3. d4 {[%clk 0:02:48.8]} 3... cxd4 {[%clk 0:02:55.3]}
4. Nxd4 {[%clk 0:02:48.6]} 4... Nf6 {[%clk 0:02:56.2]} 5. Nc3 {[%clk 0:02:48.6]}
5... Nc6 {[%clk 0:02:54.6]} 6. Bg5 {[%clk 0:02:46]} 6... e6 {[%clk 0:02:48.6]}
7. Qd2 {[%clk 0:02:43.4]} 7... a6 {[%clk 0:02:48.3]} 8. O-O-O {[%clk 0:02:41.8]}
8... Bd7 {[%clk 0:02:48.9]} 9. f4 {[%clk 0:02:39.2]} 9... b5 {[%clk 0:02:43]}
10. Bxf6 {[%clk 0:02:36.7]} 10... gxf6 {[%clk 0:02:40.8]} 11. Kb1 {[%clk
0:02:33]} 11... Qb6 {[%clk 0:02:38.2]} 12. Nxc6 {[%clk 0:02:30]} 12... Bxc6
{[%clk 0:02:39.1]} 13. f5 {[%clk 0:02:27]} 13... b4 {[%clk 0:02:36.8]} 14. Ne2
{[%clk 0:02:24.1]} 14... e5 {[%clk 0:02:31.3]} 15. Ng3 {[%clk 0:02:19.7]} 15...
h5 {[%clk 0:02:27.1]} 16. h4 {[%clk 0:02:17.7]} 16... a5 {[%clk 0:02:13.4]} 17.
Be2 {[%clk 0:02:10.7]} 17... Be7 {[%clk 0:01:45.9]} 18. Bxh5 {[%clk 0:01:58.6]}
18... Rg8 {[%clk 0:01:38.7]} 19. Rh3 {[%clk 0:01:56]} 19... Rd8 {[%clk
0:01:33.2]} 20. Qh6 {[%clk 0:01:52.2]} 20... d5 {[%clk 0:01:05.2]} 21. Qh7
{[%clk 0:01:47.4]} 21... Rf8 {[%clk 0:01:02.7]} 22. exd5 {[%clk 0:01:45.6]}
22... Bxd5 {[%clk 0:01:02.6]} 23. Rhh1 {[%clk 0:01:46.2]} 23... Bxg2 {[%clk
0:00:52.7]} 24. Rxd8+ {[%clk 0:01:46.2]} 24... Bxd8 {[%clk 0:00:50.9]} 25. Rd1
{[%clk 0:01:47.1]} 25... a4 {[%clk 0:00:25]} 26. Qg7 {[%clk 0:01:35.9]} 26... a3
{[%clk 0:00:14.8]} 27. Be2 {[%clk 0:01:29.7]} 27... Bc6 {[%clk 0:00:06.4]} 28.
h5 {[%clk 0:01:25.9]} 28... Bb5 {[%clk 0:00:05.6]} 29. Bxb5+ {[%clk 0:01:24.5]}
29... Qxb5 {[%clk 0:00:06.5]} 30. h6 {[%clk 0:01:25.3]} 30... b3 {[%clk
0:00:02.9]} 31. Rxd8+ {[%clk 0:01:21.9]} 31... Kxd8 {[%clk 0:00:01.9]} 32. Qxf8+
{[%clk 0:01:22.8]} 32... Kc7 {[%clk 0:00:02]} 33. Qxa3 {[%clk 0:01:16.7]} 33...
bxc2+ {[%clk 0:00:01.1]} 34. Kxc2 {[%clk 0:01:16.6]} 1-0

[Event "Early-Titled-Tuesday-Blitz-October-24-2023"]
[Site "Chess.com"]
[Date "2023.10.24"]
[Round "6"]
[White "Kopytkin"]
[Black "NowInChess"]
[Result "1-0"]
[WhiteElo "2392"]
[BlackElo "2226"]
[TimeControl "180+1"]
[EndTime "9:04:01 PDT"]
[Termination "Kopytkin won on time"]

1. d4 {[%clk 0:03:00.9]} 1... Nf6 {[%clk 0:02:59.3]} 2. Bg5 {[%clk 0:02:54.7]}
2... e6 {[%clk 0:02:58.2]} 3. Nd2 {[%clk 0:02:53.6]} 3... h6 {[%clk 0:02:53.8]}
4. Bh4 {[%clk 0:02:53]} 4... d5 {[%clk 0:02:51.9]} 5. e3 {[%clk 0:02:51.8]} 5...
Be7 {[%clk 0:02:35]} 6. Bd3 {[%clk 0:02:50.6]} 6... b6 {[%clk 0:02:34.8]} 7. Qe2
{[%clk 0:02:49.5]} 7... c5 {[%clk 0:02:30.1]} 8. c3 {[%clk 0:02:49]} 8... a5
{[%clk 0:02:21.5]} 9. Ngf3 {[%clk 0:02:42.6]} 9... Ba6 {[%clk 0:02:20]} 10. Bxa6
{[%clk 0:02:42.2]} 10... Nxa6 {[%clk 0:02:18.9]} 11. Ne5 {[%clk 0:02:40.4]}
11... Nb8 {[%clk 0:02:07.3]} 12. Qb5+ {[%clk 0:02:38.7]} 12... Nfd7 {[%clk
0:02:03.5]} 13. Bg3 {[%clk 0:02:31]} 13... O-O {[%clk 0:01:58.7]} 14. O-O {[%clk
0:02:30.3]} 14... Nxe5 {[%clk 0:01:56.2]} 15. dxe5 {[%clk 0:02:28.8]} 15... Qc7
{[%clk 0:01:40.6]} 16. f4 {[%clk 0:02:27.9]} 16... f5 {[%clk 0:01:30.4]} 17.
exf6 {[%clk 0:02:23.9]} 17... Bxf6 {[%clk 0:01:30.6]} 18. e4 {[%clk 0:02:24.2]}
18... d4 {[%clk 0:01:02.2]} 19. e5 {[%clk 0:02:15.2]} 19... Be7 {[%clk
0:01:01.7]} 20. Qc4 {[%clk 0:02:09.4]} 20... Qd7 {[%clk 0:00:43.4]} 21. f5
{[%clk 0:02:01.6]} 21... b5 {[%clk 0:00:29.3]} 22. Qxe6+ {[%clk 0:01:57.3]}
22... Qxe6 {[%clk 0:00:27.8]} 23. fxe6 {[%clk 0:01:58.2]} 23... Nc6 {[%clk
0:00:22.2]} 24. Ne4 {[%clk 0:01:50.3]} 24... c4 {[%clk 0:00:13.7]} 25. Nd6
{[%clk 0:01:37.1]} 25... b4 {[%clk 0:00:10.3]} 26. Nf5 {[%clk 0:01:03.6]} 26...
d3 {[%clk 0:00:07.9]} 27. Rac1 {[%clk 0:00:55.6]} 27... Bc5+ {[%clk 0:00:04.6]}
28. Kh1 {[%clk 0:00:55.3]} 28... Rae8 {[%clk 0:00:04.3]} 29. cxb4 {[%clk
0:00:53.4]} 1-0

[Event "Early-Titled-Tuesday-Blitz-October-24-2023"]
[Site "Chess.com"]
[Date "2023.10.24"]
[Round "6"]
[White "dapsay"]
[Black "m_ezat"]
[Result "0-1"]
[WhiteElo "2403"]
[BlackElo "2593"]
[TimeControl "180+1"]
[EndTime "9:04:03 PDT"]
[Termination "m_ezat won by resignation"]

1. d4 {[%clk 0:02:54.3]} 1... Nf6 {[%clk 0:02:59.7]} 2. Bf4 {[%clk 0:02:53.8]}
2... d5 {[%clk 0:02:58.7]} 3. e3 {[%clk 0:02:54.2]} 3... c5 {[%clk 0:02:58.6]}
4. c3 {[%clk 0:02:54.5]} 4... Nc6 {[%clk 0:02:58.7]} 5. Nf3 {[%clk 0:02:54.3]}
5... Bg4 {[%clk 0:02:58.8]} 6. Qb3 {[%clk 0:02:53.4]} 6... Qb6 {[%clk
0:02:51.9]} 7. Nbd2 {[%clk 0:02:48.1]} 7... e6 {[%clk 0:02:45.8]} 8. Be2 {[%clk
0:02:48.3]} 8... c4 {[%clk 0:02:39.3]} 9. Qc2 {[%clk 0:02:47.6]} 9... Bf5 {[%clk
0:02:38.1]} 10. Qc1 {[%clk 0:02:47.9]} 10... Be7 {[%clk 0:02:36.7]} 11. h3
{[%clk 0:02:47.7]} 11... h6 {[%clk 0:02:36.4]} 12. Ne5 {[%clk 0:02:47.4]} 12...
Nxe5 {[%clk 0:02:34.8]} 13. dxe5 {[%clk 0:02:45.6]} 13... Nd7 {[%clk 0:02:34]}
14. Nf3 {[%clk 0:02:44.9]} 14... Nc5 {[%clk 0:02:33.3]} 15. O-O {[%clk
0:02:43.7]} 15... Bd3 {[%clk 0:02:31.3]} 16. Qd2 {[%clk 0:02:39.5]} 16... Ne4
{[%clk 0:02:28.5]} 17. Qd1 {[%clk 0:02:36.9]} 17... Qxb2 {[%clk 0:02:27.2]} 18.
Bxd3 {[%clk 0:02:35.2]} 18... cxd3 {[%clk 0:02:27.3]} 19. Qxd3 {[%clk
0:02:32.8]} 19... Qxc3 {[%clk 0:02:25.4]} 20. Qb5+ {[%clk 0:02:29.2]} 20... Qc6
{[%clk 0:02:25.1]} 21. Qb2 {[%clk 0:02:24.8]} 21... O-O {[%clk 0:02:21.1]} 22.
Rfc1 {[%clk 0:02:24.9]} 22... Qd7 {[%clk 0:02:17.5]} 23. Rab1 {[%clk 0:02:20]}
23... b6 {[%clk 0:02:14]} 24. Nd4 {[%clk 0:02:19.7]} 24... Rfc8 {[%clk
0:02:12.4]} 25. f3 {[%clk 0:02:17.9]} 25... Nc5 {[%clk 0:02:12.3]} 26. Qe2
{[%clk 0:02:14]} 26... Na4 {[%clk 0:02:05.3]} 27. Qd3 {[%clk 0:02:07.1]} 27...
Nc5 {[%clk 0:02:03]} 28. Qd2 {[%clk 0:02:04.1]} 28... Nb7 {[%clk 0:01:52.3]} 29.
Rd1 {[%clk 0:02:02.6]} 29... Na5 {[%clk 0:01:51.6]} 30. Kh1 {[%clk 0:02:00.6]}
30... Qa4 {[%clk 0:01:49]} 31. Nb5 {[%clk 0:01:37.2]} 31... Rc2 {[%clk
0:01:45.9]} 32. Qe1 {[%clk 0:01:37]} 32... Qxa2 {[%clk 0:01:41.5]} 33. Ra1
{[%clk 0:01:33.9]} 33... Qc4 {[%clk 0:01:38.5]} 34. Nd4 {[%clk 0:01:26.4]} 34...
Rc3 {[%clk 0:01:30.1]} 35. Qg3 {[%clk 0:01:24.8]} 35... Kh7 {[%clk 0:01:27.7]}
36. Qg4 {[%clk 0:01:24.7]} 36... Nb3 {[%clk 0:01:22.3]} 37. Rab1 {[%clk
0:01:16.3]} 37... Nxd4 {[%clk 0:01:21.7]} 38. Rxd4 {[%clk 0:01:15.6]} 38... Rc1+
{[%clk 0:01:16]} 39. Rxc1 {[%clk 0:01:15.4]} 39... Qxc1+ {[%clk 0:01:15.9]} 40.
Kh2 {[%clk 0:01:16.3]} 40... Qe1 {[%clk 0:01:03.9]} 41. Rd3 {[%clk 0:00:51.1]}
41... Rc8 {[%clk 0:00:59.3]} 42. Qh5 {[%clk 0:00:50.1]} 42... Rc1 {[%clk
0:00:51.9]} 43. Qxf7 {[%clk 0:00:46]} 43... Bh4 {[%clk 0:00:50.7]} 0-1

[Event "Early-Titled-Tuesday-Blitz-October-24-2023"]
[Site "Chess.com"]
[Date "2023.10.24"]
[Round "6"]
[White "guillembaches"]
[Black "djano"]
[Result "0-1"]
[WhiteElo "2485"]
[BlackElo "2668"]
[TimeControl "180+1"]
[EndTime "9:04:07 PDT"]
[Termination "djano won by resignation"]

1. d4 {[%clk 0:03:00.9]} 1... g6 {[%clk 0:02:58.8]} 2. Nf3 {[%clk 0:03:01.3]}
2... Bg7 {[%clk 0:02:59.3]} 3. Bg5 {[%clk 0:03:01.7]} 3... d6 {[%clk 0:02:57.9]}
4. e3 {[%clk 0:03:01.9]} 4... Nf6 {[%clk 0:02:57.9]} 5. Nbd2 {[%clk 0:03:02]}
5... O-O {[%clk 0:02:58.1]} 6. Bc4 {[%clk 0:03:02.3]} 6... b6 {[%clk 0:02:55.4]}
7. O-O {[%clk 0:03:00.5]} 7... Bb7 {[%clk 0:02:55.8]} 8. c3 {[%clk 0:03:00.5]}
8... Nbd7 {[%clk 0:02:55.7]} 9. a4 {[%clk 0:02:59.3]} 9... a5 {[%clk 0:02:54.6]}
10. Re1 {[%clk 0:02:57.3]} 10... Qe8 {[%clk 0:02:54.2]} 11. h3 {[%clk
0:02:48.8]} 11... e5 {[%clk 0:02:51.8]} 12. Qb3 {[%clk 0:02:46.1]} 12... h6
{[%clk 0:02:47]} 13. Bh4 {[%clk 0:02:45.6]} 13... g5 {[%clk 0:02:47.2]} 14. Bg3
{[%clk 0:02:45.7]} 14... Kh8 {[%clk 0:02:41.7]} 15. dxe5 {[%clk 0:02:41.2]}
15... dxe5 {[%clk 0:02:40.6]} 16. e4 {[%clk 0:02:40.3]} 16... Nh5 {[%clk
0:02:27.4]} 17. Qc2 {[%clk 0:02:39.8]} 17... Nf4 {[%clk 0:02:19.2]} 18. Nf1
{[%clk 0:02:32.6]} 18... Nc5 {[%clk 0:02:11.9]} 19. N3d2 {[%clk 0:02:32.7]}
19... f5 {[%clk 0:02:08.2]} 20. f3 {[%clk 0:02:19]} 20... fxe4 {[%clk
0:02:04.3]} 21. Nxe4 {[%clk 0:02:13.5]} 21... Qc6 {[%clk 0:01:59.5]} 22. Nfd2
{[%clk 0:02:07.5]} 22... Rad8 {[%clk 0:01:54]} 23. Bb5 {[%clk 0:02:01.2]} 23...
Qg6 {[%clk 0:01:51.6]} 24. b4 {[%clk 0:01:54]} 24... Ncd3 {[%clk 0:01:42]} 25.
Bxd3 {[%clk 0:01:42.1]} 25... Nxd3 {[%clk 0:01:42.3]} 26. Re3 {[%clk 0:01:42.2]}
26... Nf4 {[%clk 0:01:38.3]} 27. Rae1 {[%clk 0:01:35.5]} 27... h5 {[%clk
0:01:35.4]} 28. Kh1 {[%clk 0:01:31.7]} 28... g4 {[%clk 0:01:34.7]} 29. Bxf4
{[%clk 0:01:19.2]} 29... exf4 {[%clk 0:01:32.2]} 30. R3e2 {[%clk 0:01:19.3]}
30... gxh3 {[%clk 0:01:23.8]} 31. gxh3 {[%clk 0:01:14.8]} 31... Qf5 {[%clk
0:01:23.9]} 32. Rg1 {[%clk 0:01:06.2]} 32... Bh6 {[%clk 0:01:07.6]} 33. Reg2
{[%clk 0:01:02.2]} 33... Rxd2 {[%clk 0:00:53.1]} 34. Qxd2 {[%clk 0:00:29.8]}
34... Qxh3+ {[%clk 0:00:52.8]} 35. Rh2 {[%clk 0:00:29.7]} 35... Qxf3+ {[%clk
0:00:53]} 36. Rgg2 {[%clk 0:00:29.8]} 36... Qf1+ {[%clk 0:00:49]} 0-1